fUSD/lending_fUSD_20250628
["ID","MTS","AMOUNT","RATE_DAILY","PERIOD"]
[368380354,1751153432200,-1327.0,0.00022299,2]
[368380355,1751153432209,-42458.94036453,0.000223,2]
[368380356,1751153432221,-45710.05963547,0.000223,2]
[368380357,1751153432230,-155.23352289,0.00022599,2]
[368380358,1751153432239,-1000.0,0.0002277,3]
[368380359,1751153432249,-250.0,0.0002277,2]
[368380360,1751153432258,-300.0,0.0002277,2]
[368380361,1751153432268,-1500.0,0.0002277,2]
[368380362,1751153432278,-720.0,0.000229,2]
[368380363,1751153432288,-1680.0,0.00023008,2]
[368380364,1751153432298,-250.0,0.000231,2]
[368380365,1751153432309,-300.0,0.000231,2]
[368380366,1751153432319,-1500.0,0.000231,2]
[368380367,1751153432329,-300.0,0.00023727,2]
[368380368,1751153432340,-1500.0,0.00023727,2]
[368380369,1751153432350,-181.48550828,0.00024,2]
[368380370,1751153432360,-864.0,0.00024848,2]
[368380371,1751153432370,-2351.0,0.00025144,2]
[368380372,1751153432380,-173.19,0.00025287,2]
[368380373,1751153432390,-1830.34,0.00026471,2]
[368380374,1751153432399,-188.56,0.00026472,2]
[368380375,1751153432409,-1500.0,0.0002655,2]
[368380377,1751153432418,-178.05,0.00026676,2]
[368380379,1751153432428,-216.0,0.00026961,2]
[368380381,1751153432438,-8916.19371192,0.00027,10]
[368380383,1751153432447,-202.89162872,0.00027277,2]
[368380385,1751153432457,-151.0,0.00027277,2]
[368380387,1751153432466,-1184.0,0.00027292,2]
[368380389,1751153432475,-7810.19330339,0.00027293,2]
[368380391,1751153432488,-1045.85852157,0.00027293,2]
[368380392,1751153432516,-1550.03154226,0.00027293,2]
[368380393,1751153432535,-1858.00000002,0.00027293,2]
[368380396,1751153432555,-11635.91663276,0.00027293,2]
[368380397,1751153432564,-167.15,0.0002738,2]
[368380398,1751153432574,-150.0,0.0002738,2]
[368380400,1751153432583,-5441.61555579,0.0002739,10]
[368380402,1751153432594,-3292.0,0.0002748,2]
[368380404,1751153432603,-222.0,0.00027589,11]
[368380406,1751153432614,-500.0,0.00027616,2]
[368380408,1751153432623,-182.0,0.00027659,2]
[368380410,1751153432633,-657.0,0.00027681,7]
[368380412,1751153432642,-401.07,0.00027807,3]
[368380413,1751153432652,-4697.15345325,0.00027815,2]
[368380416,1751153432663,-452.45706685,0.00027815,2]
[368380419,1751153432686,-973.203203,0.00027815,2]
[368380421,1751153432698,-381.21894081,0.00027815,2]
[368380423,1751153432708,-218.78105919,0.00027817,2]
[368380427,1751153432739,-438.21894081,0.00027817,2]
[368380429,1751153432749,-150.0,0.00027827,2]
[368380431,1751153432759,-283.69294903,0.00027915,2]
[368380433,1751153432770,-216.30705097,0.00027915,2]
[368380435,1751153432779,-156.69099329,0.00027915,2]
[368380441,1751153432833,-343.30900671,0.00027915,2]
[368380443,1751153432843,-500.0,0.00027915,2]
[368380445,1751153432852,-215.09834829,0.00027915,2]
[368380447,1751153432863,-284.90165171,0.00027915,2]
[368380449,1751153432872,-307.57548676,0.00027915,2]
[368380461,1751153437876,-933.74356251,0.000228,3]
[368380462,1751153437888,-4574.25643749,0.000228,3]
[368380463,1751153437898,-4555.0208978,0.000234,5]
[368380527,1751153438783,-804.52361988,0.000234,5]
[368380531,1751153438814,-148.45548232,0.000234,5]
[368380532,1751153438824,-192.42451324,0.00027915,2]
[368380533,1751153438833,-207.4,0.00027915,2]
[368380535,1751153438844,-500.0,0.00027915,2]
[368380537,1751153438854,-500.0,0.00027915,2]
[368380539,1751153438863,-500.0,0.00027915,2]
[368380541,1751153438872,-251.72000444,0.00027915,2]
[368380543,1751153438883,-248.27999556,0.00027915,2]
[368380545,1751153438893,-500.0,0.00027915,2]
[368380547,1751153438902,-8.29202419,0.00027915,2]
[368380550,1751153438913,-491.70797581,0.00027915,2]
[368380552,1751153438922,-500.0,0.00027915,2]
[368380554,1751153438931,-255.34876811,0.00027915,2]
[368380556,1751153438950,-244.65123189,0.00027915,2]
[368380558,1751153438959,-355.34876811,0.00027915,2]
[368380561,1751153438973,-144.65123189,0.00027915,2]
[368380563,1751153438982,-500.0,0.00027915,2]
[368380565,1751153438991,-72.4448248,0.00027949,2]
[368380604,1751153440083,-112.8351752,0.00027949,2]
[368380605,1751153440093,-185.28,0.00027957,2]
[368380606,1751153440102,-1000.0,0.00027959,2]
[368380607,1751153440112,-185.28,0.00027964,2]
[368380608,1751153440120,-185.28,0.00027971,2]
[368380609,1751153440130,-10.69335473,0.00027979,2]
[368380610,1751153440142,-174.58664527,0.00027979,2]
[368380611,1751153440151,-185.28,0.00027986,2]
[368380612,1751153440161,-185.28,0.00027994,2]
[368380613,1751153440170,-16.39437139,0.00028001,2]
[368380614,1751153440181,-168.88562861,0.00028001,2]
[368380615,1751153440191,-185.28,0.00028008,2]
[368380616,1751153440200,-1774.47424022,0.00028008,2]
[368380617,1751153440213,-1564.52575978,0.00028008,2]
[368380618,1751153440223,-185.28,0.00028016,2]
[368380619,1751153440232,-17.95452816,0.00028023,2]
[368380631,1751153440721,-156.0,0.00028008,2]
[368380632,1751153440731,-167.32547184,0.00028023,2]
[368380633,1751153440740,-185.28,0.0002803,2]
[368380634,1751153440749,-185.28,0.00028038,2]
[368380635,1751153440758,-185.28,0.00028045,2]
[368380636,1751153440768,-185.28,0.00028052,2]
[368380637,1751153440777,-185.28,0.0002806,2]
[368380638,1751153440788,-376.3905769,0.00028062,2]
[368380639,1751153440799,-6127.64208696,0.00028062,2]
[368380640,1751153440808,-185.28,0.00028067,2]
[368380641,1751153440817,-185.28,0.00028074,2]
[368380642,1751153440826,-185.28,0.00028082,2]
[368380643,1751153440835,-185.28,0.00028089,2]
[368380644,1751153440845,-26769.70666279,0.00028202,2]
[368380645,1751153440854,-218.8,0.00028217,2]
[368380646,1751153440863,-6504.03266386,0.00028309,2]
[368380647,1751153440872,-200.0,0.00028332,2]
[368380648,1751153440881,-453.27,0.00028363,2]
[368380649,1751153440890,-835.41973025,0.00028472,2]
[368380650,1751153440900,-184.68,0.0002851,120]
[368380651,1751153440909,-1552.68,0.0002851,2]
[368380652,1751153440918,-250.0,0.00028514,2]
[368380653,1751153440928,-6504.03266386,0.00028555,2]
[368380654,1751153440937,-202.46825208,0.000286,19]
[368380655,1751153440946,-202.46825192,0.000286,19]
[368380656,1751153440956,-202.46825192,0.000286,19]
[368380657,1751153440965,-202.46825192,0.000286,19]
[368380658,1751153440975,-202.46825192,0.000286,19]
[368380659,1751153440985,-202.46825192,0.000286,19]
[368380660,1751153440995,-202.46825192,0.000286,19]
[368380661,1751153441006,-202.46825192,0.000286,19]
[368380662,1751153441015,-202.46825192,0.000286,19]
[368380663,1751153441026,-202.46825192,0.000286,19]
[368380664,1751153441036,-202.46825192,0.000286,19]
[368380665,1751153441046,-202.46825192,0.000286,19]
[368380666,1751153441057,-202.46825192,0.000286,19]
[368380667,1751153441066,-168.266252,0.00028744,8]
[368380668,1751153441076,-6504.03266386,0.00028802,2]
[368380669,1751153441085,-202.46825192,0.00028813,19]
[368380670,1751153441095,-166.91,0.00028871,2]
[368380671,1751153441104,-598.26254514,0.000289,2]
[368380672,1751153441117,-1030.08003019,0.000289,2]
[368380673,1751153441131,-871.65742467,0.000289,2]
[368380674,1751153441141,-434.74257513,0.000289,2]
[368380675,1751153441156,-2065.25742487,0.000289,2]
[368380676,1751153441165,-579.74257513,0.00028905,2]
[368380677,1751153441200,-201.47046505,0.00028905,2]
[368380678,1751153441211,-222.48416174,0.00028909,2]
[368380679,1751153441221,-187.66708373,0.00028916,2]
[368380680,1751153441232,-1107.62828948,0.00028923,2]
[368380681,1751153441247,-563.82691052,0.00028923,2]
[368380682,1751153441256,-3030.99194057,0.00028933,2]
[368380683,1751153441268,-2684.47178802,0.00028933,2]
[368380684,1751153441279,-376.99194281,0.00028933,2]
[368380685,1751153441290,-1301.99,0.00028933,2]
[368380686,1751153441302,-255.67333895,0.00028933,2]
[368380687,1751153441343,-687.19631346,0.00028933,2]
[368380688,1751153441352,-269.43161076,0.00028933,2]
[368380689,1751153441361,-2500.0,0.00028933,2]
[368380690,1751153441371,-500.0,0.00028933,2]
[368380691,1751153441380,-1000.0,0.00028933,2]
[368380692,1751153441390,-3528.10579349,0.00029,2]
[368380693,1751153441401,-36271.25764817,0.00029,2]
[368380694,1751153441412,-88702.80642514,0.00029,2]
[368380695,1751153441422,-18068.2801739,0.00029013,2]
[368380696,1751153441431,-90341.4008693,0.00029023,2]
[368380697,1751153441440,-22021.9598251,0.00029023,2]
[368380698,1751153441450,-23280.35675963,0.00029033,2]
[368380699,1751153441469,-1420.54374346,0.00029033,2]
[368380700,1751153441480,-1042.18054915,0.00029033,2]
[368380706,1751153442948,-197.12921998,0.00028117,2]
[368380707,1751153442959,-6184.4801659,0.00029033,2]
[368380708,1751153443101,-6571.83019752,0.00029033,2]
[368380722,1751153445958,-4860.67614856,0.00029033,2]
[368380723,1751153445970,-1812.51836045,0.00029033,2]
[368380724,1751153445981,-35884.68565265,0.00029033,2]
[368380725,1751153446101,-856.36107788,0.00029033,2]
[368380726,1751153446123,-277.97063424,0.00029033,2]
[368380727,1751153446134,-848.3419997,0.00029033,2]
[368380728,1751153446220,-105328.73591086,0.00029033,2]
[368380729,1751153446230,-1000.0,0.00029033,2]
[368380731,1751153446239,-1594.61,0.00029041,2]
[368380733,1751153446248,-9034.14008693,0.00029048,2]
[368380734,1751153446258,-11010.9799125,0.00029048,2]
[368380735,1751153446267,-6504.03266386,0.00029049,2]
[368380736,1751153446277,-8337.31532375,0.00029058,2]
[368380737,1751153446286,-1356.31866,0.0002913,2]
[368380738,1751153446296,-11010.9799125,0.0002918,2]
[368380739,1751153446305,-8337.31532375,0.00029183,2]
[368380740,1751153446314,-18068.2801739,0.0002919,2]
[368380742,1751153446323,-11010.9799125,0.0002919,2]
[368380744,1751153446332,-182.0,0.00029191,7]
[368380746,1751153446342,-462.4,0.00029196,2]
[368380748,1751153446351,-798.87,0.00029196,2]
[368380750,1751153446360,-9780.0,0.000292,2]
[368380752,1751153446369,-19999.0,0.000292,2]
[368380754,1751153446378,-187.66708368,0.00029232,2]
[368380756,1751153446387,-215.0738,0.00029284,2]
[368380758,1751153446396,-11010.9799125,0.00029289,2]
[368380759,1751153446406,-200.0,0.00029293,2]
[368380760,1751153446415,-6504.03266386,0.00029296,2]
[368380762,1751153446424,-781.21304018,0.00029296,2]
[368380764,1751153446434,-9034.14008693,0.00029299,2]
[368380766,1751153446444,-8337.31532375,0.00029309,2]
[368380768,1751153446453,-150.0,0.0002936,2]
[368380770,1751153446462,-150.0,0.00029378,2]
[368380772,1751153446472,-11010.9799125,0.0002938,2]
[368380774,1751153446481,-151.46,0.0002938,2]
[368380776,1751153446490,-150.0,0.00029381,2]
[368380778,1751153446499,-150.0,0.00029383,2]
[368380779,1751153446509,-150.0,0.00029388,2]
[368380780,1751153446518,-150.0,0.00029389,2]
[368380781,1751153446527,-150.0,0.00029389,2]
[368380782,1751153446536,-9034.14008693,0.0002939,2]
[368380783,1751153446546,-614.479,0.00029393,22]
[368380784,1751153446555,-150.0,0.00029395,2]
[368380785,1751153446563,-350.0,0.00029396,2]
[368380786,1751153446573,-150.0,0.00029396,2]
[368380787,1751153446583,-1000.0,0.000294,2]
[368380788,1751153446593,-200.0,0.000294,10]
[368380789,1751153446604,-1000.0,0.00029405,2]
[368380790,1751153446614,-202.46825192,0.00029422,21]
[368380791,1751153446623,-150.0,0.00029422,2]
[368380792,1751153446633,-200.0,0.00029425,2]
[368380793,1751153446642,-200.0,0.00029425,2]
[368380794,1751153446651,-200.0,0.00029425,2]
[368380795,1751153446662,-300.0,0.00029425,2]
[368380796,1751153446671,-8337.31532375,0.00029434,2]
[368380797,1751153446680,-150.0,0.00029439,2]
[368380798,1751153446689,-1000.0,0.00029445,2]
[368380799,1751153446921,-150.0,0.00029453,2]
[368380800,1751153446976,-150.0,0.00029455,2]
[368380801,1751153446986,-150.0,0.00029457,2]
[368380802,1751153446995,-150.0,0.00029481,2]
[368380803,1751153447004,-168.0,0.00029481,2]
[368380804,1751153447013,-269.43161067,0.00029483,15]
[368380805,1751153447022,-357.08944029,0.00029485,2]
[368380806,1751153447031,-229.0,0.00029485,2]
[368380807,1751153447039,-11010.9799125,0.00029491,2]
[368380808,1751153447048,-150.0,0.00029499,2]
[368380809,1751153447057,-500.0,0.000295,10]
[368380810,1751153447066,-24215.44631132,0.000295,2]
[368380811,1751153447075,-238.0,0.000295,2]
[368380812,1751153447084,-9034.14008693,0.000295,2]
[368380813,1751153447093,-150.0,0.00029511,2]
[368380814,1751153447103,-11010.9799125,0.00029515,2]
[368380815,1751153447111,-150.0,0.00029519,2]
[368380816,1751153447123,-5000.0,0.0002952,2]
[368380817,1751153447133,-9034.14008693,0.00029525,2]
[368380818,1751153447143,-151.76208582,0.00029532,2]
[368380819,1751153447154,-150.0,0.00029532,2]
[368380820,1751153447165,-150.0,0.00029532,2]
[368380821,1751153447179,-566.50771596,0.00029533,2]
[368380822,1751153447188,-6504.03266386,0.00029542,2]
[368380823,1751153447199,-150.0,0.00029545,2]
[368380824,1751153447208,-187.66708368,0.00029549,2]
[368380825,1751153447218,-150.0,0.0002955,2]
[368380826,1751153447228,-150.0,0.00029554,2]
[368380827,1751153447238,-8337.31532375,0.00029559,2]
[368380828,1751153447250,-150.0,0.00029565,2]
[368380829,1751153447260,-1807.72678571,0.0002957,2]
[368380830,1751153447270,-1000.0,0.00029572,2]
[368380831,1751153447279,-9034.14008693,0.0002958,2]
[368380832,1751153447288,-11010.9799125,0.0002958,2]
[368380833,1751153447297,-11010.9799125,0.00029582,2]
[368380834,1751153447306,-150.0,0.00029585,2]
[368380835,1751153447315,-11010.9799125,0.00029587,2]
[368380836,1751153447324,-18068.2801739,0.0002959,2]
[368380837,1751153447334,-22021.9598251,0.0002959,2]
[368380838,1751153447343,-9034.14008693,0.00029592,2]
[368380839,1751153447352,-36136.5603477,0.00029597,2]
[368380840,1751153447362,-546.1087179,0.00029597,2]
[368380841,1751153447372,-150.0,0.00029597,2]
[368380842,1751153447381,-150.0,0.00029597,2]
[368380843,1751153447391,-1091.917393,0.000296,2]
[368380844,1751153447400,-35407.63293884,0.000296,2]
[368380845,1751153447410,-150.0,0.000296,2]
[368380846,1751153447421,-377.0,0.000296,2]
[368380847,1751153447430,-800.0,0.000296,10]
[368380848,1751153447439,-165.7,0.000296,21]
[368380849,1751153447449,-770.0,0.000296,2]
[368380850,1751153447458,-1668.7643,0.000296,2]
[368380851,1751153447467,-150.0,0.00029601,2]
[368380852,1751153447476,-150.0,0.00029602,2]
[368380853,1751153447486,-11010.9799125,0.00029602,2]
[368380854,1751153447495,-9034.14008693,0.00029602,2]
[368380855,1751153447504,-790.0,0.00029603,5]
[368380856,1751153447513,-66065.8794752,0.00029607,2]
[368380857,1751153447523,-151.46,0.00029607,2]
[368380858,1751153447532,-150.0,0.00029612,2]
[368380859,1751153447541,-150.0,0.00029612,2]
[368380860,1751153447550,-150.0,0.00029612,2]
[368380861,1751153447559,-500.0,0.00029612,2]
[368380862,1751153447569,-219.04344377,0.00029612,2]
[368380863,1751153447578,-516.0,0.00029612,2]
[368380864,1751153447587,-150.0,0.00029612,2]
[368380865,1751153447596,-150.0,0.00029612,2]
[368380866,1751153447605,-500.0,0.00029612,2]
[368380867,1751153447614,-500.0,0.00029612,2]
[368380868,1751153447623,-500.0,0.00029612,2]
[368380869,1751153447632,-150.0,0.00029612,2]
[368380870,1751153447641,-500.0,0.00029612,2]
[368380871,1751153447650,-500.0,0.00029612,2]
[368380872,1751153447659,-150.0,0.00029612,2]
[368380873,1751153447668,-150.0,0.00029612,2]
[368380874,1751153447677,-150.0,0.00029612,2]
[368380875,1751153447686,-150.0,0.00029612,2]
[368380876,1751153447695,-500.0,0.00029612,2]
[368380877,1751153447705,-259.00489388,0.00029612,2]
[368380878,1751153447715,-150.99687195,0.00029612,2]
[368380879,1751153447725,-150.0,0.00029612,2]
[368380880,1751153447735,-500.0,0.00029612,2]
[368380881,1751153447744,-150.0,0.00029612,2]
[368380882,1751153447753,-150.0,0.00029612,2]
[368380883,1751153447762,-150.0,0.00029612,2]
[368380884,1751153447772,-150.0,0.00029612,2]
[368380885,1751153447781,-150.0,0.00029612,2]
[368380886,1751153447791,-500.0,0.00029612,2]
[368380887,1751153447800,-127179.93048747,0.00029617,14]
[368380888,1751153447811,-110109.799125,0.00029622,2]
[368380889,1751153447820,-151.46,0.00029622,2]
[368380890,1751153447828,-2290.5240772,0.00029622,2]
[368380891,1751153447838,-1583.5163917,0.00029632,2]
[368380892,1751153447848,-3316.0562926,0.00029632,2]
[368380893,1751153447857,-218585.5401455,0.00029632,2]
[368380894,1751153447866,-16273.5856401,0.00029632,2]
[368380895,1751153447875,-175.441279,0.00029632,2]
[368380896,1751153447884,-3784.1873061,0.00029632,2]
[368380897,1751153447893,-179.5555151,0.00029632,2]
[368380898,1751153447903,-318.0330134,0.00029632,2]
[368380899,1751153447912,-350545.86118785,0.00029632,2]
[368380900,1751153447921,-2000.0,0.00029633,2]
[368380901,1751153447931,-151.0,0.00029633,2]
[368380902,1751153447940,-578.87320905,0.00029633,2]
[368380903,1751153447949,-246.0,0.00029634,2]
[368380904,1751153447958,-200.0,0.00029634,2]
[368380905,1751153447967,-187.501,0.00029634,2]
[368380906,1751153447976,-192.56,0.00029634,2]
[368380907,1751153447986,-225.519,0.00029634,2]
[368380908,1751153447995,-219.612,0.00029634,2]
[368380909,1751153448004,-2007.0,0.00029635,2]
[368380910,1751153448013,-804.0,0.00029635,2]
[368380911,1751153448022,-639.0,0.00029635,2]
[368380912,1751153448031,-1280.0,0.00029635,2]
[368380913,1751153448040,-599.877,0.00029635,2]
[368380914,1751153448049,-930.0,0.00029635,2]
[368380915,1751153448059,-1678.0,0.00029635,2]
[368380916,1751153448068,-559.0,0.00029635,2]
[368380917,1751153448078,-1162.0,0.00029635,2]
[368380918,1751153448087,-4102.0,0.00029635,2]
[368380919,1751153448096,-7145.0,0.00029635,2]
[368380920,1751153448106,-948.0,0.00029635,2]
[368380921,1751153448115,-151.46,0.00029642,2]
[368380922,1751153448125,-500.0,0.00029652,2]
[368380923,1751153448134,-500.0,0.00029652,2]
[368380924,1751153448143,-500.0,0.00029652,2]
[368380925,1751153448153,-500.0,0.00029652,2]
[368380926,1751153448161,-500.0,0.00029652,2]
[368380927,1751153448171,-500.0,0.00029652,2]
[368380928,1751153448181,-500.0,0.00029652,2]
[368380929,1751153448192,-848.0,0.00029652,2]
[368380930,1751153448202,-500.0,0.00029652,2]
[368380931,1751153448211,-500.0,0.00029652,2]
[368380932,1751153448220,-500.0,0.00029652,2]
[368380933,1751153448230,-500.0,0.00029652,2]
[368380934,1751153448242,-500.0,0.00029652,2]
[368380935,1751153448251,-500.0,0.00029652,2]
[368380936,1751153448260,-500.0,0.00029652,2]
[368380937,1751153448269,-500.0,0.00029652,2]
[368380938,1751153448278,-500.0,0.00029652,2]
[368380939,1751153448287,-500.0,0.00029652,2]
[368380940,1751153448296,-500.0,0.00029652,2]
[368380941,1751153448305,-500.0,0.00029652,2]
[368380942,1751153448314,-500.0,0.00029652,2]
[368380943,1751153448323,-500.0,0.00029652,2]
[368380944,1751153448333,-500.0,0.00029652,2]
[368380945,1751153448342,-500.0,0.00029652,2]
[368380946,1751153448351,-500.0,0.00029652,2]
[368380947,1751153448360,-500.0,0.00029652,2]
[368380948,1751153448369,-500.0,0.00029652,2]
[368380949,1751153448378,-500.0,0.00029652,2]
[368380950,1751153448387,-500.0,0.00029652,2]
[368380951,1751153448396,-500.0,0.00029652,2]
[368380952,1751153448405,-500.0,0.00029652,2]
[368380953,1751153448414,-500.0,0.00029652,2]
[368380954,1751153448424,-500.0,0.00029652,2]
[368380955,1751153448433,-500.0,0.00029652,2]
[368380956,1751153448442,-500.0,0.00029652,2]
[368380957,1751153448452,-500.0,0.00029652,2]
[368380958,1751153448461,-500.0,0.00029652,2]
[368380959,1751153448471,-500.0,0.00029652,2]
[368380960,1751153448480,-500.0,0.00029652,2]
[368380961,1751153448489,-500.0,0.00029652,2]
[368380962,1751153448498,-500.0,0.00029652,2]
[368380963,1751153448507,-500.0,0.00029652,2]
[368380964,1751153448517,-500.0,0.00029652,2]
[368380965,1751153448526,-500.0,0.00029652,2]
[368380966,1751153448535,-500.0,0.00029652,2]
[368380967,1751153448544,-500.0,0.00029652,2]
[368380968,1751153448553,-500.0,0.00029652,2]
[368380969,1751153448562,-500.0,0.00029652,2]
[368380970,1751153448571,-500.0,0.00029652,2]
[368380971,1751153448580,-500.0,0.00029652,2]
[368380972,1751153448589,-500.0,0.00029652,2]
[368380973,1751153448598,-500.0,0.00029652,2]
[368380974,1751153448607,-500.0,0.00029652,2]
[368380975,1751153448616,-500.0,0.00029652,2]
[368380976,1751153448626,-500.0,0.00029652,2]
[368380977,1751153448635,-500.0,0.00029652,2]
[368380978,1751153448644,-500.0,0.00029652,2]
[368380979,1751153448654,-500.0,0.00029652,2]
[368380980,1751153448663,-500.0,0.00029652,2]
[368380981,1751153448672,-500.0,0.00029652,2]
[368380982,1751153448681,-500.0,0.00029652,2]
[368380983,1751153448690,-500.0,0.00029652,2]
[368380984,1751153448699,-500.0,0.00029652,2]
[368380985,1751153448708,-500.0,0.00029652,2]
[368380986,1751153448717,-500.0,0.00029652,2]
[368380987,1751153448726,-500.0,0.00029652,2]
[368380988,1751153448735,-500.0,0.00029652,2]
[368380989,1751153448744,-500.0,0.00029652,2]
[368380990,1751153448754,-500.0,0.00029652,2]
[368380991,1751153448764,-500.0,0.00029652,2]
[368380992,1751153448774,-500.0,0.00029652,2]
[368380993,1751153448783,-500.0,0.00029652,2]
[368380994,1751153448792,-500.0,0.00029652,2]
[368380995,1751153448801,-500.0,0.00029652,2]
[368380996,1751153448810,-500.0,0.00029652,2]
[368380997,1751153448820,-500.0,0.00029652,2]
[368380998,1751153448830,-500.0,0.00029652,2]
[368380999,1751153448839,-500.0,0.00029652,2]
[368381000,1751153448848,-500.0,0.00029652,2]
[368381001,1751153448857,-500.0,0.00029652,2]
[368381002,1751153448867,-500.0,0.00029652,2]
[368381003,1751153448876,-500.0,0.00029652,2]
[368381004,1751153448885,-500.0,0.00029652,2]
[368381005,1751153448894,-500.0,0.00029652,2]
[368381006,1751153448903,-500.0,0.00029652,2]
[368381007,1751153448912,-500.0,0.00029652,2]
[368381008,1751153448922,-500.0,0.00029652,2]
[368381009,1751153448932,-500.0,0.00029652,2]
[368381010,1751153448941,-500.0,0.00029652,2]
[368381011,1751153448951,-500.0,0.00029652,2]
[368381012,1751153448960,-500.0,0.00029652,2]
[368381013,1751153448969,-500.0,0.00029652,2]
[368381014,1751153448979,-500.0,0.00029652,2]
[368381015,1751153448988,-500.0,0.00029652,2]
[368381016,1751153448998,-500.0,0.00029652,2]
[368381017,1751153449007,-500.0,0.00029652,2]
[368381018,1751153449016,-513.0,0.00029652,2]
[368381019,1751153449025,-500.0,0.00029652,2]
[368381020,1751153449036,-500.0,0.00029652,2]
[368381021,1751153449046,-500.0,0.00029652,2]
[368381022,1751153449055,-500.0,0.00029652,2]
[368381023,1751153449064,-500.0,0.00029652,2]
[368381024,1751153449074,-500.0,0.00029652,2]
[368381025,1751153449083,-500.0,0.00029652,2]
[368381026,1751153449093,-500.0,0.00029652,2]
[368381027,1751153449102,-500.0,0.00029652,2]
[368381028,1751153449111,-500.0,0.00029652,2]
[368381029,1751153449121,-500.0,0.00029652,2]
[368381030,1751153449130,-500.0,0.00029652,2]
[368381031,1751153449139,-500.0,0.00029652,2]
[368381032,1751153449149,-500.0,0.00029652,2]
[368381033,1751153449158,-500.0,0.00029652,2]
[368381034,1751153449168,-500.0,0.00029652,2]
[368381035,1751153449178,-500.0,0.00029652,2]
[368381036,1751153449189,-500.0,0.00029652,2]
[368381037,1751153449199,-500.0,0.00029652,2]
[368381038,1751153449208,-500.0,0.00029652,2]
[368381039,1751153449219,-500.0,0.00029652,2]
[368381040,1751153449228,-500.0,0.00029652,2]
[368381041,1751153449237,-500.0,0.00029652,2]
[368381042,1751153449247,-500.0,0.00029652,2]
[368381043,1751153449257,-500.0,0.00029652,2]
[368381044,1751153449267,-500.0,0.00029652,2]
[368381045,1751153449276,-500.0,0.00029652,2]
[368381046,1751153449286,-500.0,0.00029652,2]
[368381047,1751153449295,-500.0,0.00029652,2]
[368381048,1751153449305,-500.0,0.00029652,2]
[368381049,1751153449314,-500.0,0.00029652,2]
[368381050,1751153449324,-500.0,0.00029652,2]
[368381051,1751153449333,-500.0,0.00029652,2]
[368381052,1751153449343,-500.0,0.00029652,2]
[368381053,1751153449352,-500.0,0.00029652,2]
[368381054,1751153449363,-500.0,0.00029652,2]
[368381055,1751153449372,-500.0,0.00029652,2]
[368381056,1751153449382,-500.0,0.00029652,2]
[368381057,1751153449391,-500.0,0.00029652,2]
[368381058,1751153449401,-500.0,0.00029652,2]
[368381059,1751153449411,-500.0,0.00029652,2]
[368381060,1751153449420,-500.0,0.00029652,2]
[368381061,1751153449430,-500.0,0.00029652,2]
[368381062,1751153449439,-500.0,0.00029652,2]
[368381063,1751153449449,-500.0,0.00029652,2]
[368381064,1751153449459,-500.0,0.00029652,2]
[368381065,1751153449468,-500.0,0.00029652,2]
[368381066,1751153449478,-500.0,0.00029652,2]
[368381067,1751153449487,-500.0,0.00029652,2]
[368381068,1751153449496,-500.0,0.00029652,2]
[368381069,1751153449504,-500.0,0.00029652,2]
[368381070,1751153449514,-500.0,0.00029652,2]
[368381071,1751153449523,-500.0,0.00029652,2]
[368381072,1751153449532,-500.0,0.00029652,2]
[368381073,1751153449542,-500.0,0.00029652,2]